[Event "Late-Titled-Tuesday-Blitz-September-19-2023"]
[Site "Chess.com"]
[Date "2023.09.19"]
[Round "10"]
[White "Nikachu"]
[Black "Heinza9"]
[Result "0-1"]
[WhiteElo "2188"]
[BlackElo "2308"]
[TimeControl "180+1"]
[EndTime "15:51:34 PDT"]
[Termination "Heinza9 won by resignation"]

1. e4 {[%clk 0:03:00.9]} 1... e5 {[%clk 0:02:59.7]} 2. Nf3 {[%clk 0:02:59.9]}
2... Nc6 {[%clk 0:02:59.7]} 3. Bb5 {[%clk 0:02:59.9]} 3... f5 {[%clk 0:02:59.6]}
4. d3 {[%clk 0:02:58.5]} 4... Nf6 {[%clk 0:02:59]} 5. O-O {[%clk 0:02:57.9]}
5... d6 {[%clk 0:02:59.4]} 6. Nc3 {[%clk 0:02:56.5]} 6... Be7 {[%clk 0:02:59.5]}
7. Re1 {[%clk 0:02:50.2]} 7... O-O {[%clk 0:02:59.2]} 8. exf5 {[%clk 0:02:46.6]}
8... Bxf5 {[%clk 0:02:58.3]} 9. d4 {[%clk 0:02:47.5]} 9... exd4 {[%clk
0:02:50.7]} 10. Nxd4 {[%clk 0:02:43.3]} 10... Nxd4 {[%clk 0:02:50.7]} 11. Qxd4
{[%clk 0:02:43.3]} 11... c6 {[%clk 0:02:49.5]} 12. Bf1 {[%clk 0:02:42.1]} 12...
d5 {[%clk 0:02:48.6]} 13. Bg5 {[%clk 0:02:38.2]} 13... Qd7 {[%clk 0:02:40]} 14.
Qd2 {[%clk 0:02:29.8]} 14... Bb4 {[%clk 0:02:35.5]} 15. Bxf6 {[%clk 0:02:27.6]}
15... Rxf6 {[%clk 0:02:34]} 16. a3 {[%clk 0:02:27.6]} 16... Bc5 {[%clk
0:02:30.1]} 17. Na4 {[%clk 0:02:21.5]} 17... Bd6 {[%clk 0:02:30]} 18. b4 {[%clk
0:02:21]} 18... Raf8 {[%clk 0:02:26.9]} 19. g3 {[%clk 0:02:18.1]} 19... Be4
{[%clk 0:02:25]} 20. Nc3 {[%clk 0:02:08.3]} 20... Rxf2 {[%clk 0:02:18.4]} 21.
Qxf2 {[%clk 0:02:01.6]} 21... Rxf2 {[%clk 0:02:18.3]} 22. Kxf2 {[%clk
0:02:02.5]} 22... Qf5+ {[%clk 0:02:16.1]} 23. Kg1 {[%clk 0:02:01.4]} 23... Be5
{[%clk 0:02:15.9]} 24. Nxe4 {[%clk 0:01:54.7]} 24... Bxa1 {[%clk 0:02:13.4]} 25.
Nd6 {[%clk 0:01:49.9]} 25... Bd4+ {[%clk 0:02:12.8]} 26. Kg2 {[%clk 0:01:47]}
26... Qf2+ {[%clk 0:02:08.6]} 0-1

[Event "Late-Titled-Tuesday-Blitz-September-19-2023"]
[Site "Chess.com"]
[Date "2023.09.19"]
[Round "10"]
[White "angelgab3"]
[Black "TatjanaVasilevich"]
[Result "0-1"]
[WhiteElo "2566"]
[BlackElo "2569"]
[TimeControl "180+1"]
[EndTime "15:52:03 PDT"]
[Termination "TatjanaVasilevich won by resignation"]

1. e4 {[%clk 0:03:00.9]} 1... c5 {[%clk 0:02:53.9]} 2. Nf3 {[%clk 0:03:01]} 2...
e6 {[%clk 0:02:53.1]} 3. d4 {[%clk 0:03:01.5]} 3... cxd4 {[%clk 0:02:51.7]} 4.
Nxd4 {[%clk 0:03:02.4]} 4... a6 {[%clk 0:02:51.5]} 5. Bd3 {[%clk 0:03:02.6]}
5... Nf6 {[%clk 0:02:51.3]} 6. O-O {[%clk 0:03:02.3]} 6... d6 {[%clk 0:02:51.9]}
7. Qe2 {[%clk 0:03:01.3]} 7... b5 {[%clk 0:02:50.5]} 8. a4 {[%clk 0:03:00.1]}
8... b4 {[%clk 0:02:48]} 9. f4 {[%clk 0:02:57.6]} 9... Bb7 {[%clk 0:02:43.9]}
10. a5 {[%clk 0:02:53.9]} 10... d5 {[%clk 0:02:38.3]} 11. e5 {[%clk 0:02:53]}
11... Bc5 {[%clk 0:02:37.7]} 12. Be3 {[%clk 0:02:53]} 12... Nfd7 {[%clk
0:02:37.7]} 13. Nd2 {[%clk 0:02:52.2]} 13... O-O {[%clk 0:02:36.1]} 14. Rf3
{[%clk 0:02:33.1]} 14... Nc6 {[%clk 0:02:31]} 15. N2b3 {[%clk 0:02:12.2]} 15...
Nxd4 {[%clk 0:02:26.5]} 16. Bxd4 {[%clk 0:02:06.4]} 16... Bxd4+ {[%clk
0:02:25.5]} 17. Nxd4 {[%clk 0:02:07.3]} 17... g6 {[%clk 0:02:23]} 18. Rh3 {[%clk
0:01:47.6]} 18... Qe7 {[%clk 0:02:20.6]} 19. Kh1 {[%clk 0:01:45.2]} 19... f6
{[%clk 0:02:18.2]} 20. exf6 {[%clk 0:01:46.1]} 20... Rxf6 {[%clk 0:02:19.1]} 21.
Re3 {[%clk 0:01:41]} 21... Re8 {[%clk 0:02:17]} 22. g3 {[%clk 0:01:39.4]} 22...
Qc5 {[%clk 0:02:07.5]} 23. Nb3 {[%clk 0:01:38.4]} 23... Qxe3 {[%clk 0:02:04.5]}
24. Qxe3 {[%clk 0:01:35.8]} 24... d4+ {[%clk 0:02:04.8]} 25. Qe4 {[%clk
0:01:36.7]} 25... Bxe4+ {[%clk 0:02:05]} 26. Bxe4 {[%clk 0:01:37.6]} 26... e5
{[%clk 0:02:05.9]} 27. fxe5 {[%clk 0:01:38]} 27... Rxe5 {[%clk 0:02:06.8]} 28.
Bb7 {[%clk 0:01:34.6]} 28... Nc5 {[%clk 0:02:02.5]} 0-1

[Event "Late-Titled-Tuesday-Blitz-September-19-2023"]
[Site "Chess.com"]
[Date "2023.09.19"]
[Round "10"]
[White "cassoulet"]
[Black "aNaartjieZA"]
[Result "1-0"]
[WhiteElo "2772"]
[BlackElo "2595"]
[TimeControl "180+1"]
[EndTime "15:52:25 PDT"]
[Termination "cassoulet won by resignation"]

1. e4 {[%clk 0:02:59.6]} 1... e6 {[%clk 0:02:59.4]} 2. d3 {[%clk 0:02:56.6]}
2... d5 {[%clk 0:02:59.6]} 3. Nd2 {[%clk 0:02:57.2]} 3... Nf6 {[%clk 0:02:59.5]}
4. Ngf3 {[%clk 0:02:56.2]} 4... Nc6 {[%clk 0:02:59.8]} 5. g3 {[%clk 0:02:56.4]}
5... dxe4 {[%clk 0:02:57.9]} 6. dxe4 {[%clk 0:02:56.2]} 6... Bc5 {[%clk
0:02:58]} 7. Bg2 {[%clk 0:02:56]} 7... O-O {[%clk 0:02:57.9]} 8. O-O {[%clk
0:02:55.9]} 8... e5 {[%clk 0:02:58.2]} 9. c3 {[%clk 0:02:55.2]} 9... a5 {[%clk
0:02:58.3]} 10. Qe2 {[%clk 0:02:55.4]} 10... b6 {[%clk 0:02:58.3]} 11. Nc4
{[%clk 0:02:54.3]} 11... Ba6 {[%clk 0:02:57.4]} 12. b3 {[%clk 0:02:54.5]} 12...
Qe7 {[%clk 0:02:40.1]} 13. Bg5 {[%clk 0:02:53.6]} 13... Rfd8 {[%clk 0:02:33.3]}
14. Rfd1 {[%clk 0:02:53]} 14... h6 {[%clk 0:02:30.1]} 15. Bd2 {[%clk 0:02:41.1]}
15... Qe6 {[%clk 0:02:23]} 16. Nh4 {[%clk 0:02:27.8]} 16... a4 {[%clk
0:02:10.9]} 17. Nf5 {[%clk 0:02:24.8]} 17... Bxc4 {[%clk 0:02:04.1]} 18. bxc4
{[%clk 0:02:22.9]} 18... Na5 {[%clk 0:02:04]} 19. Bf1 {[%clk 0:02:18.1]} 19...
Rd7 {[%clk 0:01:54.4]} 20. Be3 {[%clk 0:02:11.8]} 20... Nxe4 {[%clk 0:01:52.6]}
21. Qg4 {[%clk 0:02:11.6]} 21... Ng5 {[%clk 0:01:07.7]} 22. Rxd7 {[%clk
0:02:01.4]} 1-0

[Event "Late-Titled-Tuesday-Blitz-September-19-2023"]
[Site "Chess.com"]
[Date "2023.09.19"]
[Round "10"]
[White "RIPOL"]
[Black "martinez_95"]
[Result "1-0"]
[WhiteElo "2421"]
[BlackElo "2215"]
[TimeControl "180+1"]
[EndTime "15:52:26 PDT"]
[Termination "RIPOL won by resignation"]

1. d4 {[%clk 0:02:59.4]} 1... Nf6 {[%clk 0:02:52.8]} 2. Bg5 {[%clk 0:02:58]}
2... c5 {[%clk 0:02:49]} 3. Bxf6 {[%clk 0:02:55.6]} 3... gxf6 {[%clk 0:02:49.9]}
4. d5 {[%clk 0:02:55.6]} 4... Qb6 {[%clk 0:02:48.8]} 5. Qc1 {[%clk 0:02:54.8]}
5... f5 {[%clk 0:02:48.5]} 6. c4 {[%clk 0:02:53.2]} 6... Bg7 {[%clk 0:02:48.6]}
7. Nc3 {[%clk 0:02:52.5]} 7... d6 {[%clk 0:02:32.4]} 8. g3 {[%clk 0:02:50.7]}
8... Nd7 {[%clk 0:02:29.2]} 9. Nf3 {[%clk 0:02:43.2]} 9... Ne5 {[%clk
0:02:27.3]} 10. Nxe5 {[%clk 0:02:41.4]} 10... dxe5 {[%clk 0:02:26.7]} 11. Bh3
{[%clk 0:02:32.6]} 11... h5 {[%clk 0:02:16]} 12. e4 {[%clk 0:02:27.4]} 12...
fxe4 {[%clk 0:02:10]} 13. Bxc8 {[%clk 0:02:25]} 13... Rxc8 {[%clk 0:02:10.7]}
14. Nxe4 {[%clk 0:02:19.2]} 14... h4 {[%clk 0:01:34.4]} 15. O-O {[%clk
0:02:12.3]} 15... Bh6 {[%clk 0:01:25.6]} 16. Qd1 {[%clk 0:02:10.3]} 16... hxg3
{[%clk 0:01:24.8]} 17. hxg3 {[%clk 0:02:06.9]} 17... f5 {[%clk 0:01:08.2]} 18.
Qh5+ {[%clk 0:02:03]} 18... Kd7 {[%clk 0:01:04.4]} 19. Qxf5+ {[%clk 0:02:01.5]}
19... Kd8 {[%clk 0:00:57.5]} 20. Kg2 {[%clk 0:01:56.9]} 1-0

[Event "Late-Titled-Tuesday-Blitz-September-19-2023"]
[Site "Chess.com"]
[Date "2023.09.19"]
[Round "10"]
[White "Mimsychess"]
[Black "zverr1"]
[Result "0-1"]
[WhiteElo "2354"]
[BlackElo "2501"]
[TimeControl "180+1"]
[EndTime "15:53:04 PDT"]
[Termination "zverr1 won by resignation"]

1. e4 {[%clk 0:02:57.6]} 1... c5 {[%clk 0:02:59.5]} 2. Nf3 {[%clk 0:02:54.4]}
2... Nc6 {[%clk 0:03:00.1]} 3. Bb5 {[%clk 0:02:51.2]} 3... g6 {[%clk 0:02:59.3]}
4. O-O {[%clk 0:02:45.5]} 4... Bg7 {[%clk 0:02:59.3]} 5. Re1 {[%clk 0:02:42.5]}
5... Nf6 {[%clk 0:02:58.9]} 6. c3 {[%clk 0:02:32.1]} 6... O-O {[%clk 0:02:58.2]}
7. h3 {[%clk 0:02:25.7]} 7... a6 {[%clk 0:02:55.6]} 8. Bf1 {[%clk 0:02:16.1]}
8... d6 {[%clk 0:02:43.3]} 9. d4 {[%clk 0:02:09.7]} 9... Qb6 {[%clk 0:02:38.7]}
10. Na3 {[%clk 0:01:56.1]} 10... cxd4 {[%clk 0:02:36.9]} 11. cxd4 {[%clk
0:01:49.2]} 11... d5 {[%clk 0:02:30.8]} 12. e5 {[%clk 0:01:42.5]} 12... Ne4
{[%clk 0:02:30.6]} 13. Nc2 {[%clk 0:01:37.2]} 13... Bf5 {[%clk 0:02:17.5]} 14.
Ne3 {[%clk 0:01:32.5]} 14... Be6 {[%clk 0:02:13.6]} 15. b3 {[%clk 0:01:28.1]}
15... Rac8 {[%clk 0:02:09.9]} 16. Ba3 {[%clk 0:01:20.2]} 16... Nb4 {[%clk
0:02:05.7]} 17. Nd2 {[%clk 0:01:06.9]} 17... Nc3 {[%clk 0:02:02.4]} 18. Qf3
{[%clk 0:01:00.3]} 18... Ncxa2 {[%clk 0:01:58.6]} 19. g4 {[%clk 0:00:41.8]}
19... Rc3 {[%clk 0:01:56.3]} 20. Qg2 {[%clk 0:00:39.7]} 20... Qxd4 {[%clk
0:01:55.2]} 21. Bb2 {[%clk 0:00:40.1]} 21... Qxd2 {[%clk 0:01:54]} 22. Bxc3
{[%clk 0:00:38.3]} 22... Qxc3 {[%clk 0:01:54.9]} 0-1

[Event "Late-Titled-Tuesday-Blitz-September-19-2023"]
[Site "Chess.com"]
[Date "2023.09.19"]
[Round "10"]
[White "lefonghua"]
[Black "DTChess"]
[Result "1-0"]
[WhiteElo "2655"]
[BlackElo "2527"]
[TimeControl "180+1"]
[EndTime "15:53:14 PDT"]
[Termination "lefonghua won by resignation"]

1. d4 {[%clk 0:03:00.9]} 1... Nf6 {[%clk 0:02:59.7]} 2. c4 {[%clk 0:02:59.2]}
2... g6 {[%clk 0:02:59.7]} 3. Nc3 {[%clk 0:02:58.8]} 3... Bg7 {[%clk 0:02:59.8]}
4. e4 {[%clk 0:02:57.8]} 4... d6 {[%clk 0:03:00.2]} 5. f4 {[%clk 0:02:58]} 5...
O-O {[%clk 0:03:00.3]} 6. Nf3 {[%clk 0:02:58.5]} 6... c5 {[%clk 0:03:00.7]} 7.
d5 {[%clk 0:02:57.9]} 7... e6 {[%clk 0:03:00.4]} 8. Be2 {[%clk 0:02:58.5]} 8...
exd5 {[%clk 0:03:00.6]} 9. cxd5 {[%clk 0:02:59.4]} 9... Re8 {[%clk 0:03:00.6]}
10. Nd2 {[%clk 0:02:59.3]} 10... a6 {[%clk 0:02:58.1]} 11. a4 {[%clk 0:02:59.1]}
11... b6 {[%clk 0:02:58.4]} 12. O-O {[%clk 0:02:58.9]} 12... Nbd7 {[%clk
0:02:56.4]} 13. Bf3 {[%clk 0:02:59.1]} 13... Bb7 {[%clk 0:02:56.3]} 14. Nc4
{[%clk 0:02:59.3]} 14... Qc7 {[%clk 0:02:54.9]} 15. Re1 {[%clk 0:02:57.9]} 15...
Rab8 {[%clk 0:02:53.2]} 16. e5 {[%clk 0:02:52.9]} 16... dxe5 {[%clk 0:02:47.1]}
17. d6 {[%clk 0:02:53.3]} 17... Qc8 {[%clk 0:02:39.6]} 18. fxe5 {[%clk
0:02:53.1]} 18... Bxf3 {[%clk 0:02:32.3]} 19. Qxf3 {[%clk 0:02:53.2]} 19... b5
{[%clk 0:02:32]} 20. axb5 {[%clk 0:02:48.9]} 20... axb5 {[%clk 0:02:32.1]} 21.
Bg5 {[%clk 0:02:37.9]} 21... bxc4 {[%clk 0:02:21.5]} 22. exf6 {[%clk 0:02:35.1]}
22... Bf8 {[%clk 0:02:04.9]} 23. Nd5 {[%clk 0:02:25.8]} 23... Rxe1+ {[%clk
0:01:57.8]} 24. Rxe1 {[%clk 0:02:24.9]} 24... Bxd6 {[%clk 0:01:55.7]} 25. Ne7+
{[%clk 0:02:20]} 25... Bxe7 {[%clk 0:01:55.9]} 26. fxe7 {[%clk 0:02:20.9]} 26...
Qe8 {[%clk 0:01:54.4]} 27. Qc3 {[%clk 0:02:14.6]} 27... Rb3 {[%clk 0:01:43.4]}
28. Qxc4 {[%clk 0:02:08.7]} 28... Rxb2 {[%clk 0:01:42.9]} 29. Qd5 {[%clk
0:01:58.4]} 29... h5 {[%clk 0:01:28.5]} 30. Qxd7 {[%clk 0:01:44]} 30... Qxd7
{[%clk 0:01:28.4]} 31. e8=Q+ {[%clk 0:01:43.9]} 31... Qxe8 {[%clk 0:01:28.7]}
32. Rxe8+ {[%clk 0:01:44.6]} 32... Kg7 {[%clk 0:01:29.2]} 33. Rc8 {[%clk
0:01:44.2]} 33... Rc2 {[%clk 0:01:21.4]} 34. Be3 {[%clk 0:01:44.3]} 34... c4
{[%clk 0:01:20.2]} 35. Bd4+ {[%clk 0:01:42.6]} 35... Kh6 {[%clk 0:01:18.2]} 36.
h4 {[%clk 0:01:42.1]} 36... g5 {[%clk 0:01:17.6]} 37. Rc6+ {[%clk 0:01:39.7]}
37... Kh7 {[%clk 0:01:16.7]} 38. hxg5 {[%clk 0:01:40]} 38... Rc1+ {[%clk
0:01:14.1]} 39. Kh2 {[%clk 0:01:40.1]} 39... Rc2 {[%clk 0:01:09.2]} 40. Rh6+
{[%clk 0:01:39.9]} 1-0

[Event "Late-Titled-Tuesday-Blitz-September-19-2023"]
[Site "Chess.com"]
[Date "2023.09.19"]
[Round "10"]
[White "Alphafischer2019"]
[Black "reevecanada"]
[Result "1-0"]
[WhiteElo "2635"]
[BlackElo "2527"]
[TimeControl "180+1"]
[EndTime "15:53:36 PDT"]
[Termination "Alphafischer2019 won by resignation"]

1. Nf3 {[%clk 0:03:00.9]} 1... d5 {[%clk 0:02:59.4]} 2. b3 {[%clk 0:03:01.4]}
2... Nd7 {[%clk 0:02:59.7]} 3. Bb2 {[%clk 0:03:02.1]} 3... Ngf6 {[%clk
0:02:59.6]} 4. g3 {[%clk 0:03:01.2]} 4... Nb6 {[%clk 0:03:00.1]} 5. Bg2 {[%clk
0:03:01.4]} 5... Bf5 {[%clk 0:03:00.6]} 6. O-O {[%clk 0:03:01.1]} 6... e6 {[%clk
0:03:01.3]} 7. d3 {[%clk 0:03:01.7]} 7... c6 {[%clk 0:03:01.9]} 8. Nh4 {[%clk
0:03:01.6]} 8... Be7 {[%clk 0:03:02.2]} 9. Nd2 {[%clk 0:03:00.2]} 9... O-O
{[%clk 0:03:02.2]} 10. h3 {[%clk 0:02:58]} 10... Nfd7 {[%clk 0:03:00.6]} 11. e4
{[%clk 0:02:48.9]} 11... Bxh4 {[%clk 0:02:56.5]} 12. exf5 {[%clk 0:02:47.9]}
12... Bf6 {[%clk 0:02:56.6]} 13. Bxf6 {[%clk 0:02:47.3]} 13... Qxf6 {[%clk
0:02:56]} 14. fxe6 {[%clk 0:02:47.9]} 14... fxe6 {[%clk 0:02:56.8]} 15. Nf3
{[%clk 0:02:44.9]} 15... e5 {[%clk 0:02:57]} 16. Qd2 {[%clk 0:02:43.5]} 16...
Rad8 {[%clk 0:02:55]} 17. Rfe1 {[%clk 0:02:42.3]} 17... h6 {[%clk 0:02:53]} 18.
Rad1 {[%clk 0:02:42.5]} 18... e4 {[%clk 0:02:47.9]} 19. Nh2 {[%clk 0:02:34]}
19... exd3 {[%clk 0:02:43.4]} 20. cxd3 {[%clk 0:02:34.9]} 20... Ne5 {[%clk
0:02:43.3]} 21. d4 {[%clk 0:02:32.4]} 21... Nf7 {[%clk 0:02:43.2]} 22. Ng4
{[%clk 0:02:29.9]} 22... Qf5 {[%clk 0:02:42.5]} 23. Re7 {[%clk 0:02:20.5]} 23...
Rd7 {[%clk 0:02:39.4]} 24. Rde1 {[%clk 0:02:18.3]} 24... Ng5 {[%clk 0:02:31.5]}
25. R7e5 {[%clk 0:01:56.4]} 25... Nf3+ {[%clk 0:02:22.9]} 26. Bxf3 {[%clk
0:01:56.6]} 26... Qxf3 {[%clk 0:02:23.6]} 27. R1e3 {[%clk 0:01:57.4]} 27... Qf7
{[%clk 0:02:22.9]} 28. h4 {[%clk 0:01:52.6]} 28... Nc8 {[%clk 0:02:20.7]} 29.
Re6 {[%clk 0:01:48]} 29... Nd6 {[%clk 0:02:16.4]} 30. R6e5 {[%clk 0:01:30.7]}
30... Ne4 {[%clk 0:02:14.4]} 31. R5xe4 {[%clk 0:01:28.1]} 31... dxe4 {[%clk
0:02:13.3]} 32. Ne5 {[%clk 0:01:28.8]} 32... Rxd4 {[%clk 0:02:13.6]} 33. Qe2
{[%clk 0:01:05.3]} 33... Qd5 {[%clk 0:02:12.2]} 34. Ng6 {[%clk 0:01:01.5]} 34...
Rf3 {[%clk 0:02:07.7]} 35. Ne7+ {[%clk 0:01:00.2]} 35... Kh7 {[%clk 0:01:48.9]}
36. Nxd5 {[%clk 0:00:58.8]} 36... Rxd5 {[%clk 0:01:49.5]} 37. Rxf3 {[%clk
0:00:58.5]} 37... exf3 {[%clk 0:01:50.4]} 38. Qxf3 {[%clk 0:00:58.4]} 38... Kg8
{[%clk 0:01:49.2]} 39. Qe4 {[%clk 0:00:56.4]} 39... Rd1+ {[%clk 0:01:45.4]} 40.
Kg2 {[%clk 0:00:56.3]} 40... Rd2 {[%clk 0:01:45.6]} 41. Qe8+ {[%clk 0:00:56.1]}
41... Kh7 {[%clk 0:01:45.4]} 42. a4 {[%clk 0:00:56.1]} 42... Rb2 {[%clk
0:01:44.3]} 43. Qe4+ {[%clk 0:00:56.3]} 43... Kh8 {[%clk 0:01:43.8]} 44. Qd3
{[%clk 0:00:55]} 1-0

[Event "Late-Titled-Tuesday-Blitz-September-19-2023"]
[Site "Chess.com"]
[Date "2023.09.19"]
[Round "10"]
[White "Laico"]
[Black "Lady_Nika"]
[Result "1-0"]
[WhiteElo "2425"]
[BlackElo "2461"]
[TimeControl "180+1"]
[EndTime "15:53:54 PDT"]
[Termination "Laico won by checkmate"]

1. e4 {[%clk 0:02:57]} 1... c6 {[%clk 0:02:59.8]} 2. d4 {[%clk 0:02:56.4]} 2...
d5 {[%clk 0:03:00]} 3. f3 {[%clk 0:02:57]} 3... dxe4 {[%clk 0:02:58.5]} 4. fxe4
{[%clk 0:02:57.9]} 4... e5 {[%clk 0:02:58.9]} 5. Nf3 {[%clk 0:02:57.1]} 5...
exd4 {[%clk 0:02:59]} 6. Bc4 {[%clk 0:02:53.1]} 6... Be7 {[%clk 0:02:50.6]} 7.
O-O {[%clk 0:02:50.7]} 7... Nf6 {[%clk 0:02:38.1]} 8. Ng5 {[%clk 0:02:48]} 8...
O-O {[%clk 0:02:33.3]} 9. Nxf7 {[%clk 0:02:48.2]} 9... Rxf7 {[%clk 0:02:33]} 10.
Bxf7+ {[%clk 0:02:49.1]} 10... Kxf7 {[%clk 0:02:31.8]} 11. e5 {[%clk 0:02:49.5]}
11... d3 {[%clk 0:02:27.7]} 12. Qxd3 {[%clk 0:02:43.8]} 12... Qb6+ {[%clk
0:02:17.3]} 13. Be3 {[%clk 0:02:40]} 13... Qxb2 {[%clk 0:02:16.2]} 14. Bd4
{[%clk 0:02:39]} 14... Qb5 {[%clk 0:02:05.4]} 15. c4 {[%clk 0:02:32]} 15... Qa5
{[%clk 0:02:05.3]} 16. exf6 {[%clk 0:02:29.9]} 16... Bxf6 {[%clk 0:02:04.5]} 17.
Bxf6 {[%clk 0:02:25.8]} 17... gxf6 {[%clk 0:02:04.5]} 18. Qxh7+ {[%clk
0:02:24.6]} 18... Ke6 {[%clk 0:02:04.6]} 19. Qg8+ {[%clk 0:02:18.7]} 19... Kd7
{[%clk 0:02:00.9]} 20. Rd1+ {[%clk 0:02:15.5]} 20... Ke7 {[%clk 0:01:47.2]} 21.
Qxc8 {[%clk 0:02:07.8]} 21... Qb6+ {[%clk 0:01:26]} 22. Kh1 {[%clk 0:02:05.1]}
22... Qb2 {[%clk 0:01:25.9]} 23. Nd2 {[%clk 0:01:59.9]} 23... a5 {[%clk
0:01:21]} 24. Rab1 {[%clk 0:01:58]} 24... Qc2 {[%clk 0:01:19.7]} 25. Qxb7+
{[%clk 0:01:56.9]} 25... Nd7 {[%clk 0:01:18.1]} 26. Qxa8 {[%clk 0:01:56.7]}
26... Ne5 {[%clk 0:01:18.3]} 27. Qxa5 {[%clk 0:01:49.9]} 27... Nd3 {[%clk
0:01:14.5]} 28. Ne4 {[%clk 0:01:41.5]} 28... f5 {[%clk 0:01:10.1]} 29. Qxf5
{[%clk 0:01:39.4]} 29... Nc5 {[%clk 0:00:52.9]} 30. Qxc5+ {[%clk 0:01:38.3]}
30... Kf7 {[%clk 0:00:49.8]} 31. Qf5+ {[%clk 0:01:36.8]} 31... Kg8 {[%clk
0:00:47.7]} 32. Nf6+ {[%clk 0:01:36.9]} 32... Kg7 {[%clk 0:00:47.5]} 33. Qxc2
{[%clk 0:01:37.8]} 33... Kxf6 {[%clk 0:00:46.9]} 34. Rd6+ {[%clk 0:01:37.3]}
34... Ke5 {[%clk 0:00:46.8]} 35. Qd3 {[%clk 0:01:33.2]} 35... c5 {[%clk
0:00:46.2]} 36. Re1+ {[%clk 0:01:33.2]} 36... Kf4 {[%clk 0:00:46.1]} 37. Rf6+
{[%clk 0:01:33.2]} 37... Kg4 {[%clk 0:00:46.1]} 38. Qg6+ {[%clk 0:01:32.7]}
38... Kh4 {[%clk 0:00:45.7]} 39. Rf4# {[%clk 0:01:31.9]} 1-0

[Event "Late-Titled-Tuesday-Blitz-September-19-2023"]
[Site "Chess.com"]
[Date "2023.09.19"]
[Round "10"]
[White "hansen"]
[Black "Mesa_1"]
[Result "1-0"]
[WhiteElo "2917"]
[BlackElo "2607"]
[TimeControl "180+1"]
[EndTime "15:53:58 PDT"]
[Termination "hansen won by resignation"]

1. e4 {[%clk 0:03:00.9]} 1... e6 {[%clk 0:02:55.9]} 2. d4 {[%clk 0:03:01.2]}
2... d5 {[%clk 0:02:56.6]} 3. Nc3 {[%clk 0:03:01.3]} 3... Nf6 {[%clk 0:02:55.9]}
4. Bg5 {[%clk 0:03:01.3]} 4... dxe4 {[%clk 0:02:55.6]} 5. Nxe4 {[%clk
0:03:01.6]} 5... Nbd7 {[%clk 0:02:56.3]} 6. Nf3 {[%clk 0:03:01.8]} 6... h6
{[%clk 0:02:55.9]} 7. Nxf6+ {[%clk 0:03:01.9]} 7... Nxf6 {[%clk 0:02:56.8]} 8.
Be3 {[%clk 0:03:02.3]} 8... Bd6 {[%clk 0:02:54.1]} 9. Bd3 {[%clk 0:03:01.3]}
9... b6 {[%clk 0:02:46.8]} 10. Ne5 {[%clk 0:02:56.1]} 10... Nd5 {[%clk
0:02:39.3]} 11. Bb5+ {[%clk 0:02:46.6]} 11... Kf8 {[%clk 0:02:37.6]} 12. O-O
{[%clk 0:02:19.8]} 12... Nxe3 {[%clk 0:02:23.9]} 13. fxe3 {[%clk 0:02:19.9]}
13... Bxe5 {[%clk 0:02:21.8]} 14. dxe5 {[%clk 0:02:19.6]} 14... Bb7 {[%clk
0:01:39.8]} 15. Qh5 {[%clk 0:02:10.5]} 15... Qe7 {[%clk 0:01:16.5]} 16. Rad1
{[%clk 0:02:10.2]} 16... g6 {[%clk 0:00:54.1]} 17. Qxg6 {[%clk 0:01:41.5]} 17...
Bxg2 {[%clk 0:00:54.3]} 18. Rf6 {[%clk 0:01:36.8]} 18... Bh3 {[%clk 0:00:21.6]}
19. Rd7 {[%clk 0:01:18.4]} 19... Bf5 {[%clk 0:00:20.9]} 20. Qh5 {[%clk
0:01:09.8]} 20... Rg8+ {[%clk 0:00:19.3]} 21. Kf2 {[%clk 0:01:07.2]} 1-0

[Event "Late-Titled-Tuesday-Blitz-September-19-2023"]
[Site "Chess.com"]
[Date "2023.09.19"]
[Round "10"]
[White "MajorCoast"]
[Black "rikchessmx"]
[Result "0-1"]
[WhiteElo "2289"]
[BlackElo "2351"]
[TimeControl "180+1"]
[EndTime "15:53:58 PDT"]
[Termination "rikchessmx won by resignation"]

1. a4 {[%clk 0:03:00.9]} 1... g6 {[%clk 0:02:51.3]} 2. c3 {[%clk 0:03:01.5]}
2... Bg7 {[%clk 0:02:51.7]} 3. d4 {[%clk 0:03:01]} 3... b6 {[%clk 0:02:50.8]} 4.
Nf3 {[%clk 0:03:00.9]} 4... Bb7 {[%clk 0:02:51.2]} 5. Bg5 {[%clk 0:03:01.1]}
5... d6 {[%clk 0:02:47.5]} 6. e3 {[%clk 0:02:59.4]} 6... Nd7 {[%clk 0:02:47.6]}
7. Nbd2 {[%clk 0:02:58.7]} 7... Ngf6 {[%clk 0:02:47.6]} 8. Bc4 {[%clk
0:02:52.7]} 8... a6 {[%clk 0:02:45.9]} 9. O-O {[%clk 0:02:50.7]} 9... O-O {[%clk
0:02:45.4]} 10. Re1 {[%clk 0:02:50.2]} 10... d5 {[%clk 0:02:44.6]} 11. Bf1
{[%clk 0:02:49.5]} 11... Ne4 {[%clk 0:02:42.6]} 12. Nxe4 {[%clk 0:02:45.2]}
12... dxe4 {[%clk 0:02:42.5]} 13. Nd2 {[%clk 0:02:43.1]} 13... f5 {[%clk
0:02:41.8]} 14. f3 {[%clk 0:02:38.1]} 14... h6 {[%clk 0:02:30.8]} 15. Bh4 {[%clk
0:02:28.3]} 15... g5 {[%clk 0:02:30.4]} 16. Bf2 {[%clk 0:02:22.9]} 16... e5
{[%clk 0:02:29.3]} 17. fxe4 {[%clk 0:02:15.9]} 17... f4 {[%clk 0:02:25.4]} 18.
exf4 {[%clk 0:02:06]} 18... exf4 {[%clk 0:02:24.5]} 19. e5 {[%clk 0:01:52.2]}
19... Qe7 {[%clk 0:02:07.1]} 20. Ne4 {[%clk 0:01:45.3]} 20... Rad8 {[%clk
0:01:51.1]} 21. h4 {[%clk 0:01:31.3]} 21... Nxe5 {[%clk 0:01:40.7]} 22. hxg5
{[%clk 0:01:16.8]} 22... hxg5 {[%clk 0:01:39.9]} 23. Bc4+ {[%clk 0:01:14.4]}
23... Nxc4 {[%clk 0:01:37.4]} 24. Qh5 {[%clk 0:00:55.6]} 24... Bxe4 {[%clk
0:01:34.9]} 25. Re2 {[%clk 0:00:36.3]} 25... Rde8 {[%clk 0:01:31.6]} 26. Rae1
{[%clk 0:00:35.6]} 26... Nd6 {[%clk 0:01:31.7]} 27. g3 {[%clk 0:00:25.4]} 27...
Qf7 {[%clk 0:01:28.1]} 28. Qh3 {[%clk 0:00:22.7]} 28... Bf5 {[%clk 0:01:21.7]}
29. Qh2 {[%clk 0:00:20.9]} 29... Rxe2 {[%clk 0:01:19.3]} 0-1